{"text_format":"3","workbook":"xlsx","n_sheets":4,"sheets":["ZAČÍNAME","PARAMETRE PROJEKTU","PODROBNOSTI O PROJEKTE","SÚČTY PROJEKTU"],"not_rendered":{"charts":2,"defined_names":3,"pivot_tables":1},"read":"whole","date_system":"1900"}

{"sheet":"ZAČÍNAME","index":0,"n_rows":7,"n_cols":2,"rows_kept":7}
[null,"INFORMÁCIE O TEJTO ŠABLÓNE"]
[null,"Pomocou tohto zošita Sledovanie plánovania projektu môžete sledovať parametre projektu, podrobnosti o projekte a súčty projektu."]
[null,"Zadajte údaje do hárka Parametre projektu a stĺpcové grafy sa aktualizujú. Zadajte tiež údaje do hárka Podrobnosti o projekte. Kontingenčná tabuľka v hárku Súčty projektu sa aktualizuje automaticky."]
[null,"Zadajte názov spoločnosti v hárku Parametre a tento názov sa automaticky aktualizuje v ostatných hárkoch."]
[null,"Poznámka:  "]
[null,"V každom hárku zošita SLEDOVANIE PLÁNOVANIA PROJEKTU sú v stĺpci A uvedené ďalšie pokyny. Tento text je zámerne skrytý. Ak chcete text odstrániť, vyberte stĺpec A a potom stlačte kláves ODSTRÁNIŤ. Ak chcete text zobraziť, vyberte stĺpec A a potom zmeňte farbu písma."]
[null,"Ak chcete získať ďalšie informácie o tabuľkách v hárkoch, v tabuľke stlačte kláves SHIFT a potom kláves F10, vyberte možnosť TABUĽKA a potom vyberte položku ALTERNATÍVNY TEXT."]

{"sheet":"PARAMETRE PROJEKTU","index":1,"n_rows":24,"n_cols":9,"rows_kept":24,"merged":[[23,1,42,3]]}
["V tomto hárku vytvorte parametre projektu. Do bunky napravo zadajte názov spoločnosti. V bunkách v tomto stĺpci nájdete užitočné pokyny. Začnite stlačením šípky nadol.","Názov spoločnosti"]
["V bunke napravo sa nachádza nadpis tohto hárka.","Sledovanie projektu riadenia podujatia"]
["V bunke napravo sa nachádza správa o dôvernosti.",{"$f":"B1&\" je dôverný\"","v":"Názov spoločnosti je dôverný"}]
["V bunke napravo je uvedený tip.","Tieňované bunky sa vypočítavajú automaticky. Netreba do nich nič zadávať."]
["Do tabuľky Parametre začínajúcej v bunke napravo zadajte podrobnosti. Ďalší pokyn sa nachádza v bunke A12.","TYP PROJEKTU","ACCOUNT MANAŽÉR","PROJEKTOVÝ MANAŽÉR","STRATEGICKÝ MANAŽÉR","NÁVRHOVÝ ŠPECIALISTA","PERSONÁL PODUJATIA","ADMINISTRATÍVNY PERSONÁL","Celková hodnota"]
[null,"Vývoj stratégie podujatia",{"v":0.2,"d":"20%"},{"v":0.1,"d":"10%"},{"v":0.6,"d":"60%"},{"v":0,"d":"0%"},{"v":0,"d":"0%"},{"v":0.1,"d":"10%"},{"$f":"SUM(Parametre[[#This Row],[ACCOUNT MANAŽÉR]:[ADMINISTRATÍVNY PERSONÁL]])","v":{"v":1,"d":"100%"}}]
[null,"Plánovanie podujatia",{"v":0.2,"d":"20%"},{"v":0.5,"d":"50%"},{"v":0.1,"d":"10%"},{"v":0.1,"d":"10%"},{"v":0,"d":"0%"},{"v":0.1,"d":"10%"},{"$f":"SUM(Parametre[[#This Row],[ACCOUNT MANAŽÉR]:[ADMINISTRATÍVNY PERSONÁL]])","v":{"v":0.9999999999999999,"d":"100%"}}]
[null,"Návrh podujatia",{"v":0.2,"d":"20%"},{"v":0.2,"d":"20%"},{"v":0,"d":"0%"},{"v":0.5,"d":"50%"},{"v":0,"d":"0%"},{"v":0.1,"d":"10%"},{"$f":"SUM(Parametre[[#This Row],[ACCOUNT MANAŽÉR]:[ADMINISTRATÍVNY PERSONÁL]])","v":{"v":1,"d":"100%"}}]
[null,"Logistika podujatia",{"v":0.2,"d":"20%"},{"v":0.6,"d":"60%"},{"v":0,"d":"0%"},{"v":0,"d":"0%"},{"v":0.1,"d":"10%"},{"v":0.1,"d":"10%"},{"$f":"SUM(Parametre[[#This Row],[ACCOUNT MANAŽÉR]:[ADMINISTRATÍVNY PERSONÁL]])","v":{"v":1,"d":"100%"}}]
[null,"Personálne pokrytie podujatia",{"v":0.2,"d":"20%"},{"v":0.1,"d":"10%"},{"v":0,"d":"0%"},{"v":0,"d":"0%"},{"v":0.6,"d":"60%"},{"v":0.1,"d":"10%"},{"$f":"SUM(Parametre[[#This Row],[ACCOUNT MANAŽÉR]:[ADMINISTRATÍVNY PERSONÁL]])","v":{"v":1,"d":"100%"}}]
[null,"Hodnotenie podujatia",{"v":0.2,"d":"20%"},{"v":0.2,"d":"20%"},{"v":0.2,"d":"20%"},{"v":0.2,"d":"20%"},{"v":0,"d":"0%"},{"v":0.2,"d":"20%"},{"$f":"SUM(Parametre[[#This Row],[ACCOUNT MANAŽÉR]:[ADMINISTRATÍVNY PERSONÁL]])","v":{"v":1,"d":"100%"}}]
["Do buniek C12 až H12 napravo zadajte spojené sadzby. Ďalší pokyn je v bunke A14.","Spojené sadzby",{"v":180,"d":"180 EUR"},{"v":120,"d":"120 EUR"},{"v":150,"d":"150 EUR"},{"v":100,"d":"100 EUR"},{"v":80,"d":"80 EUR"},{"v":60,"d":"60 EUR"}]
[]
["V bunke napravo je stĺpcový graf zobrazujúci porovnanie plánovaných a skutočných nákladov a bunke F14 je stĺpcový graf zobrazujúci porovnanie plánovaného a skutočného počtu hodín.",{"$nulls":4},"V tejto bunke je stĺpcový graf zobrazujúci porovnanie plánovaného a skutočného počtu hodín."]
[null,null,"ACCOUNT MANAŽÉR","PROJEKTOVÝ MANAŽÉR","STRATEGICKÝ MANAŽÉR","NÁVRHOVÝ ŠPECIALISTA","PERSONÁL PODUJATIA","ADMINISTRATÍVNY PERSONÁL"]
[null,"PLÁNOVANÉ NÁKLADY",{"$f":"SUBTOTAL(109,PodrobnostiOProjekte[ACCOUNT MANAŽÉR])","v":{"v":54000,"d":"54,000.00 EUR"}},{"$f":"SUBTOTAL(109,PodrobnostiOProjekte[PROJEKTOVÝ MANAŽÉR])","v":{"v":52200,"d":"52,200.00 EUR"}},{"$f":"SUBTOTAL(109,PodrobnostiOProjekte[STRATEGICKÝ MANAŽÉR])","v":{"v":24000,"d":"24,000.00 EUR"}},{"$f":"SUBTOTAL(109,PodrobnostiOProjekte[NÁVRHOVÝ ŠPECIALISTA])","v":{"v":29000,"d":"29,000.00 EUR"}},{"$f":"SUBTOTAL(109,PodrobnostiOProjekte[PERSONÁL PODUJATIA])","v":{"v":13200,"d":"13,200.00 EUR"}},{"$f":"SUBTOTAL(109,PodrobnostiOProjekte[ADMINISTRATÍVNY PERSONÁL])","v":{"v":9000,"d":"9,000.00 EUR"}}]
[null,"SKUTOČNÉ NÁKLADY",{"$f":"SUBTOTAL(109,PodrobnostiOProjekte[[ACCOUNT MANAŽÉR ]])","v":{"v":54360,"d":"54,360.00 EUR"}},{"$f":"SUBTOTAL(109,PodrobnostiOProjekte[[PROJEKTOVÝ MANAŽÉR ]])","v":{"v":51540,"d":"51,540.00 EUR"}},{"$f":"SUBTOTAL(109,PodrobnostiOProjekte[[STRATEGICKÝ MANAŽÉR ]])","v":{"v":25650,"d":"25,650.00 EUR"}},{"$f":"SUBTOTAL(109,PodrobnostiOProjekte[[NÁVRHOVÝ ŠPECIALISTA ]])","v":{"v":28900,"d":"28,900.00 EUR"}},{"$f":"SUBTOTAL(109,PodrobnostiOProjekte[[PERSONÁL PODUJATIA ]])","v":{"v":13400,"d":"13,400.00 EUR"}},{"$f":"SUBTOTAL(109,PodrobnostiOProjekte[[ADMINISTRATÍVNY PERSONÁL ]])","v":{"v":9060,"d":"9,060.00 EUR"}}]
[null,"PLÁNOVANÝ POČET HODÍN",{"$f":"C16/$C$12","v":{"v":300,"d":"300.00"}},{"$f":"D16/$C$12","v":{"v":290,"d":"290.00"}},{"v":133.33333333333334,"d":"133.33"},{"v":161.11111111111111,"d":"161.11"},{"v":73.33333333333333,"d":"73.33"},{"v":50,"d":"50.00"}]
[null,"SKUTOČNÝ POČET HODÍN",{"$f":"C17/$C$12","v":{"v":302,"d":"302.00"}},{"$f":"D17/$C$12","v":{"v":286.3333333333333,"d":"286.33"}},{"$f":"E17/$C$12","v":{"v":142.5,"d":"142.50"}},{"$f":"F17/$C$12","v":{"v":160.55555555555554,"d":"160.56"}},{"$f":"G17/$C$12","v":{"v":74.44444444444444,"d":"74.44"}},{"$f":"H17/$C$12","v":{"v":50.333333333333336,"d":"50.33"}}]
[]
[]
[]
[]
[null,"V tejto bunke je stĺpcový graf zobrazujúci porovnanie plánovaných a skutočných nákladov."]

{"sheet":"PODROBNOSTI O PROJEKTE","index":2,"n_rows":10,"n_cols":23,"rows_kept":10}
["V tomto hárku vytvorte podrobnosti o projekte. Názov spoločnosti v bunke napravo sa aktualizuje automaticky. V bunkách v tomto stĺpci nájdete užitočné pokyny. Začnite stlačením šípky nadol.",{"$f":"'PARAMETRE PROJEKTU'!B1","v":"Názov spoločnosti"}]
["V bunke napravo sa nachádza nadpis tohto hárka.","Sledovanie projektu riadenia podujatia"]
["V bunke napravo sa nachádza správa o dôvernosti.",{"$f":"'PARAMETRE PROJEKTU'!B3","v":"Názov spoločnosti je dôverný"}]
["Zadajte informácie do tabuľky Podrobnosti o projekte začínajúcej v bunke napravo.\nINFORMÁCIE\nAk chcete do tabuľky napravo pridať riadok, vyberte pravú dolnú bunku tela tabuľky (nie v riadku súčtov) a stlačte kláves Tab, prípadne prejdite na miesto, kde chcete vložiť riadok, stlačte kombináciu klávesov SHIFT + F10 a vyberte položky Vložiť | Riadky tabuľky nad/pod.\nNezabudnite odstrániť všetky nepoužité riadky, pretože kontingenčná tabuľka SÚČTY PROJEKTU použije všetky bunky tabuliek a ak by ste nepoužité riadky neodstránili, vráti chybné výsledky.","NÁZOV PROJEKTU","TYP PROJEKTU","ODHADOVANÝ ZAČIATOK","ODHADOVANÝ KONIEC","SKUTOČNÝ ZAČIATOK","SKUTOČNÝ KONIEC","ODHADOVANÁ PRÁCA","SKUTOČNÁ PRÁCA","ODHADOVANÉ TRVANIE","SKUTOČNÉ TRVANIE","ACCOUNT MANAŽÉR","PROJEKTOVÝ MANAŽÉR","STRATEGICKÝ MANAŽÉR","NÁVRHOVÝ ŠPECIALISTA","PERSONÁL PODUJATIA","ADMINISTRATÍVNY PERSONÁL","ACCOUNT MANAŽÉR ","PROJEKTOVÝ MANAŽÉR ","STRATEGICKÝ MANAŽÉR ","NÁVRHOVÝ ŠPECIALISTA ","PERSONÁL PODUJATIA ","ADMINISTRATÍVNY PERSONÁL "]
[null,"Projekt 1","Vývoj stratégie podujatia",{"$f":"DATE(YEAR(TODAY()),6,9)","v":"2019-06-09"},{"$f":"DATE(YEAR(TODAY()),8,7)","v":"2019-08-07"},{"$f":"DATE(YEAR(TODAY()),6,29)","v":"2019-06-29"},{"$f":"DATE(YEAR(TODAY()),9,3)","v":"2019-09-03"},200,220,{"$f":"DAYS360(PodrobnostiOProjekte[[#This Row],[ODHADOVANÝ ZAČIATOK]],PodrobnostiOProjekte[[#This Row],[ODHADOVANÝ KONIEC]],FALSE)","v":58},{"$f":"DAYS360(PodrobnostiOProjekte[[#This Row],[SKUTOČNÝ ZAČIATOK]],PodrobnostiOProjekte[[#This Row],[SKUTOČNÝ KONIEC]],FALSE)","v":64},{"$f":"INDEX(Parametre[],MATCH(PodrobnostiOProjekte[[#This Row],[TYP PROJEKTU]],Parametre[TYP PROJEKTU],0),MATCH(PodrobnostiOProjekte[[#Headers],[ACCOUNT MANAŽÉR]],Parametre[#Headers],0))*INDEX('PARAMETRE PROJEKTU'!$B$12:$H$12,1,MATCH(PodrobnostiOProjekte[[#Headers],[ACCOUNT MANAŽÉR]],Parametre[#Headers],0))*PodrobnostiOProjekte[[#This Row],[ODHADOVANÁ PRÁCA]]","v":{"v":7200,"d":"7,200 EUR"}},{"$f":"INDEX(Parametre[],MATCH(PodrobnostiOProjekte[[#This Row],[TYP PROJEKTU]],Parametre[TYP PROJEKTU],0),MATCH(PodrobnostiOProjekte[[#Headers],[PROJEKTOVÝ MANAŽÉR]],Parametre[#Headers],0))*INDEX('PARAMETRE PROJEKTU'!$B$12:$H$12,1,MATCH(PodrobnostiOProjekte[[#Headers],[PROJEKTOVÝ MANAŽÉR]],Parametre[#Headers],0))*PodrobnostiOProjekte[[#This Row],[ODHADOVANÁ PRÁCA]]","v":{"v":2400,"d":"2,400 EUR"}},{"$f":"INDEX(Parametre[],MATCH(PodrobnostiOProjekte[[#This Row],[TYP PROJEKTU]],Parametre[TYP PROJEKTU],0),MATCH(PodrobnostiOProjekte[[#Headers],[STRATEGICKÝ MANAŽÉR]],Parametre[#Headers],0))*INDEX('PARAMETRE PROJEKTU'!$B$12:$H$12,1,MATCH(PodrobnostiOProjekte[[#Headers],[STRATEGICKÝ MANAŽÉR]],Parametre[#Headers],0))*PodrobnostiOProjekte[[#This Row],[ODHADOVANÁ PRÁCA]]","v":{"v":18000,"d":"18,000 EUR"}},{"$f":"INDEX(Parametre[],MATCH(PodrobnostiOProjekte[[#This Row],[TYP PROJEKTU]],Parametre[TYP PROJEKTU],0),MATCH(PodrobnostiOProjekte[[#Headers],[NÁVRHOVÝ ŠPECIALISTA]],Parametre[#Headers],0))*INDEX('PARAMETRE PROJEKTU'!$B$12:$H$12,1,MATCH(PodrobnostiOProjekte[[#Headers],[NÁVRHOVÝ ŠPECIALISTA]],Parametre[#Headers],0))*PodrobnostiOProjekte[[#This Row],[ODHADOVANÁ PRÁCA]]","v":{"v":0,"d":"0 EUR"}},{"$f":"INDEX(Parametre[],MATCH(PodrobnostiOProjekte[[#This Row],[TYP PROJEKTU]],Parametre[TYP PROJEKTU],0),MATCH(PodrobnostiOProjekte[[#Headers],[PERSONÁL PODUJATIA]],Parametre[#Headers],0))*INDEX('PARAMETRE PROJEKTU'!$B$12:$H$12,1,MATCH(PodrobnostiOProjekte[[#Headers],[PERSONÁL PODUJATIA]],Parametre[#Headers],0))*PodrobnostiOProjekte[[#This Row],[ODHADOVANÁ PRÁCA]]","v":{"v":0,"d":"0 EUR"}},{"$f":"INDEX(Parametre[],MATCH(PodrobnostiOProjekte[[#This Row],[TYP PROJEKTU]],Parametre[TYP PROJEKTU],0),MATCH(PodrobnostiOProjekte[[#Headers],[ADMINISTRATÍVNY PERSONÁL]],Parametre[#Headers],0))*INDEX('PARAMETRE PROJEKTU'!$B$12:$H$12,1,MATCH(PodrobnostiOProjekte[[#Headers],[ADMINISTRATÍVNY PERSONÁL]],Parametre[#Headers],0))*PodrobnostiOProjekte[[#This Row],[ODHADOVANÁ PRÁCA]]","v":{"v":1200,"d":"1,200 EUR"}},{"$f":"INDEX(Parametre[],MATCH(PodrobnostiOProjekte[[#This Row],[TYP PROJEKTU]],Parametre[TYP PROJEKTU],0),MATCH(PodrobnostiOProjekte[[#Headers],[ACCOUNT MANAŽÉR]],Parametre[#Headers],0))*INDEX('PARAMETRE PROJEKTU'!$B$12:$H$12,1,MATCH(PodrobnostiOProjekte[[#Headers],[ACCOUNT MANAŽÉR]],Parametre[#Headers],0))*PodrobnostiOProjekte[[#This Row],[SKUTOČNÁ PRÁCA]]","v":{"v":7920,"d":"7,920 EUR"}},{"$f":"INDEX(Parametre[],MATCH(PodrobnostiOProjekte[[#This Row],[TYP PROJEKTU]],Parametre[TYP PROJEKTU],0),MATCH(PodrobnostiOProjekte[[#Headers],[PROJEKTOVÝ MANAŽÉR]],Parametre[#Headers],0))*INDEX('PARAMETRE PROJEKTU'!$B$12:$H$12,1,MATCH(PodrobnostiOProjekte[[#Headers],[PROJEKTOVÝ MANAŽÉR]],Parametre[#Headers],0))*PodrobnostiOProjekte[[#This Row],[SKUTOČNÁ PRÁCA]]","v":{"v":2640,"d":"2,640 EUR"}},{"$f":"INDEX(Parametre[],MATCH(PodrobnostiOProjekte[[#This Row],[TYP PROJEKTU]],Parametre[TYP PROJEKTU],0),MATCH(PodrobnostiOProjekte[[#Headers],[STRATEGICKÝ MANAŽÉR]],Parametre[#Headers],0))*INDEX('PARAMETRE PROJEKTU'!$B$12:$H$12,1,MATCH(PodrobnostiOProjekte[[#Headers],[STRATEGICKÝ MANAŽÉR]],Parametre[#Headers],0))*PodrobnostiOProjekte[[#This Row],[SKUTOČNÁ PRÁCA]]","v":{"v":19800,"d":"19,800 EUR"}},{"$f":"INDEX(Parametre[],MATCH(PodrobnostiOProjekte[[#This Row],[TYP PROJEKTU]],Parametre[TYP PROJEKTU],0),MATCH(PodrobnostiOProjekte[[#Headers],[NÁVRHOVÝ ŠPECIALISTA]],Parametre[#Headers],0))*INDEX('PARAMETRE PROJEKTU'!$B$12:$H$12,1,MATCH(PodrobnostiOProjekte[[#Headers],[NÁVRHOVÝ ŠPECIALISTA]],Parametre[#Headers],0))*PodrobnostiOProjekte[[#This Row],[SKUTOČNÁ PRÁCA]]","v":{"v":0,"d":"0 EUR"}},{"$f":"INDEX(Parametre[],MATCH(PodrobnostiOProjekte[[#This Row],[TYP PROJEKTU]],Parametre[TYP PROJEKTU],0),MATCH(PodrobnostiOProjekte[[#Headers],[PERSONÁL PODUJATIA]],Parametre[#Headers],0))*INDEX('PARAMETRE PROJEKTU'!$B$12:$H$12,1,MATCH(PodrobnostiOProjekte[[#Headers],[PERSONÁL PODUJATIA]],Parametre[#Headers],0))*PodrobnostiOProjekte[[#This Row],[SKUTOČNÁ PRÁCA]]","v":{"v":0,"d":"0 EUR"}},{"$f":"INDEX(Parametre[],MATCH(PodrobnostiOProjekte[[#This Row],[TYP PROJEKTU]],Parametre[TYP PROJEKTU],0),MATCH(PodrobnostiOProjekte[[#Headers],[ADMINISTRATÍVNY PERSONÁL]],Parametre[#Headers],0))*INDEX('PARAMETRE PROJEKTU'!$B$12:$H$12,1,MATCH(PodrobnostiOProjekte[[#Headers],[ADMINISTRATÍVNY PERSONÁL]],Parametre[#Headers],0))*PodrobnostiOProjekte[[#This Row],[SKUTOČNÁ PRÁCA]]","v":{"v":1320,"d":"1,320 EUR"}}]
[null,"Projekt 2","Plánovanie podujatia",{"$f":"DATE(YEAR(TODAY())+1,6,25)","v":"2020-06-25"},{"$f":"DATE(YEAR(TODAY())+1,7,27)","v":"2020-07-27"},{"$f":"DATE(YEAR(TODAY()),7,15)","v":"2019-07-15"},{"$f":"DATE(YEAR(TODAY())+1,8,25)","v":"2020-08-25"},400,390,{"$f":"DAYS360(PodrobnostiOProjekte[[#This Row],[ODHADOVANÝ ZAČIATOK]],PodrobnostiOProjekte[[#This Row],[ODHADOVANÝ KONIEC]],FALSE)","v":32},{"$f":"DAYS360(PodrobnostiOProjekte[[#This Row],[SKUTOČNÝ ZAČIATOK]],PodrobnostiOProjekte[[#This Row],[SKUTOČNÝ KONIEC]],FALSE)","v":400},{"$f":"INDEX(Parametre[],MATCH(PodrobnostiOProjekte[[#This Row],[TYP PROJEKTU]],Parametre[TYP PROJEKTU],0),MATCH(PodrobnostiOProjekte[[#Headers],[ACCOUNT MANAŽÉR]],Parametre[#Headers],0))*INDEX('PARAMETRE PROJEKTU'!$B$12:$H$12,1,MATCH(PodrobnostiOProjekte[[#Headers],[ACCOUNT MANAŽÉR]],Parametre[#Headers],0))*PodrobnostiOProjekte[[#This Row],[ODHADOVANÁ PRÁCA]]","v":{"v":14400,"d":"14,400 EUR"}},{"$f":"INDEX(Parametre[],MATCH(PodrobnostiOProjekte[[#This Row],[TYP PROJEKTU]],Parametre[TYP PROJEKTU],0),MATCH(PodrobnostiOProjekte[[#Headers],[PROJEKTOVÝ MANAŽÉR]],Parametre[#Headers],0))*INDEX('PARAMETRE PROJEKTU'!$B$12:$H$12,1,MATCH(PodrobnostiOProjekte[[#Headers],[PROJEKTOVÝ MANAŽÉR]],Parametre[#Headers],0))*PodrobnostiOProjekte[[#This Row],[ODHADOVANÁ PRÁCA]]","v":{"v":24000,"d":"24,000 EUR"}},{"$f":"INDEX(Parametre[],MATCH(PodrobnostiOProjekte[[#This Row],[TYP PROJEKTU]],Parametre[TYP PROJEKTU],0),MATCH(PodrobnostiOProjekte[[#Headers],[STRATEGICKÝ MANAŽÉR]],Parametre[#Headers],0))*INDEX('PARAMETRE PROJEKTU'!$B$12:$H$12,1,MATCH(PodrobnostiOProjekte[[#Headers],[STRATEGICKÝ MANAŽÉR]],Parametre[#Headers],0))*PodrobnostiOProjekte[[#This Row],[ODHADOVANÁ PRÁCA]]","v":{"v":6000,"d":"6,000 EUR"}},{"$f":"INDEX(Parametre[],MATCH(PodrobnostiOProjekte[[#This Row],[TYP PROJEKTU]],Parametre[TYP PROJEKTU],0),MATCH(PodrobnostiOProjekte[[#Headers],[NÁVRHOVÝ ŠPECIALISTA]],Parametre[#Headers],0))*INDEX('PARAMETRE PROJEKTU'!$B$12:$H$12,1,MATCH(PodrobnostiOProjekte[[#Headers],[NÁVRHOVÝ ŠPECIALISTA]],Parametre[#Headers],0))*PodrobnostiOProjekte[[#This Row],[ODHADOVANÁ PRÁCA]]","v":{"v":4000,"d":"4,000 EUR"}},{"$f":"INDEX(Parametre[],MATCH(PodrobnostiOProjekte[[#This Row],[TYP PROJEKTU]],Parametre[TYP PROJEKTU],0),MATCH(PodrobnostiOProjekte[[#Headers],[PERSONÁL PODUJATIA]],Parametre[#Headers],0))*INDEX('PARAMETRE PROJEKTU'!$B$12:$H$12,1,MATCH(PodrobnostiOProjekte[[#Headers],[PERSONÁL PODUJATIA]],Parametre[#Headers],0))*PodrobnostiOProjekte[[#This Row],[ODHADOVANÁ PRÁCA]]","v":{"v":0,"d":"0 EUR"}},{"$f":"INDEX(Parametre[],MATCH(PodrobnostiOProjekte[[#This Row],[TYP PROJEKTU]],Parametre[TYP PROJEKTU],0),MATCH(PodrobnostiOProjekte[[#Headers],[ADMINISTRATÍVNY PERSONÁL]],Parametre[#Headers],0))*INDEX('PARAMETRE PROJEKTU'!$B$12:$H$12,1,MATCH(PodrobnostiOProjekte[[#Headers],[ADMINISTRATÍVNY PERSONÁL]],Parametre[#Headers],0))*PodrobnostiOProjekte[[#This Row],[ODHADOVANÁ PRÁCA]]","v":{"v":2400,"d":"2,400 EUR"}},{"$f":"INDEX(Parametre[],MATCH(PodrobnostiOProjekte[[#This Row],[TYP PROJEKTU]],Parametre[TYP PROJEKTU],0),MATCH(PodrobnostiOProjekte[[#Headers],[ACCOUNT MANAŽÉR]],Parametre[#Headers],0))*INDEX('PARAMETRE PROJEKTU'!$B$12:$H$12,1,MATCH(PodrobnostiOProjekte[[#Headers],[ACCOUNT MANAŽÉR]],Parametre[#Headers],0))*PodrobnostiOProjekte[[#This Row],[SKUTOČNÁ PRÁCA]]","v":{"v":14040,"d":"14,040 EUR"}},{"$f":"INDEX(Parametre[],MATCH(PodrobnostiOProjekte[[#This Row],[TYP PROJEKTU]],Parametre[TYP PROJEKTU],0),MATCH(PodrobnostiOProjekte[[#Headers],[PROJEKTOVÝ MANAŽÉR]],Parametre[#Headers],0))*INDEX('PARAMETRE PROJEKTU'!$B$12:$H$12,1,MATCH(PodrobnostiOProjekte[[#Headers],[PROJEKTOVÝ MANAŽÉR]],Parametre[#Headers],0))*PodrobnostiOProjekte[[#This Row],[SKUTOČNÁ PRÁCA]]","v":{"v":23400,"d":"23,400 EUR"}},{"$f":"INDEX(Parametre[],MATCH(PodrobnostiOProjekte[[#This Row],[TYP PROJEKTU]],Parametre[TYP PROJEKTU],0),MATCH(PodrobnostiOProjekte[[#Headers],[STRATEGICKÝ MANAŽÉR]],Parametre[#Headers],0))*INDEX('PARAMETRE PROJEKTU'!$B$12:$H$12,1,MATCH(PodrobnostiOProjekte[[#Headers],[STRATEGICKÝ MANAŽÉR]],Parametre[#Headers],0))*PodrobnostiOProjekte[[#This Row],[SKUTOČNÁ PRÁCA]]","v":{"v":5850,"d":"5,850 EUR"}},{"$f":"INDEX(Parametre[],MATCH(PodrobnostiOProjekte[[#This Row],[TYP PROJEKTU]],Parametre[TYP PROJEKTU],0),MATCH(PodrobnostiOProjekte[[#Headers],[NÁVRHOVÝ ŠPECIALISTA]],Parametre[#Headers],0))*INDEX('PARAMETRE PROJEKTU'!$B$12:$H$12,1,MATCH(PodrobnostiOProjekte[[#Headers],[NÁVRHOVÝ ŠPECIALISTA]],Parametre[#Headers],0))*PodrobnostiOProjekte[[#This Row],[SKUTOČNÁ PRÁCA]]","v":{"v":3900,"d":"3,900 EUR"}},{"$f":"INDEX(Parametre[],MATCH(PodrobnostiOProjekte[[#This Row],[TYP PROJEKTU]],Parametre[TYP PROJEKTU],0),MATCH(PodrobnostiOProjekte[[#Headers],[PERSONÁL PODUJATIA]],Parametre[#Headers],0))*INDEX('PARAMETRE PROJEKTU'!$B$12:$H$12,1,MATCH(PodrobnostiOProjekte[[#Headers],[PERSONÁL PODUJATIA]],Parametre[#Headers],0))*PodrobnostiOProjekte[[#This Row],[SKUTOČNÁ PRÁCA]]","v":{"v":0,"d":"0 EUR"}},{"$f":"INDEX(Parametre[],MATCH(PodrobnostiOProjekte[[#This Row],[TYP PROJEKTU]],Parametre[TYP PROJEKTU],0),MATCH(PodrobnostiOProjekte[[#Headers],[ADMINISTRATÍVNY PERSONÁL]],Parametre[#Headers],0))*INDEX('PARAMETRE PROJEKTU'!$B$12:$H$12,1,MATCH(PodrobnostiOProjekte[[#Headers],[ADMINISTRATÍVNY PERSONÁL]],Parametre[#Headers],0))*PodrobnostiOProjekte[[#This Row],[SKUTOČNÁ PRÁCA]]","v":{"v":2340,"d":"2,340 EUR"}}]
[null,"Projekt 3","Návrh podujatia",{"$f":"DATE(YEAR(TODAY())+2,7,12)","v":"2021-07-12"},{"$f":"DATE(YEAR(TODAY())+2,9,19)","v":"2021-09-19"},{"$f":"DATE(YEAR(TODAY())+6,8,7)","v":"2025-08-07"},{"$f":"DATE(YEAR(TODAY())+6,10,10)","v":"2025-10-10"},500,500,{"$f":"DAYS360(PodrobnostiOProjekte[[#This Row],[ODHADOVANÝ ZAČIATOK]],PodrobnostiOProjekte[[#This Row],[ODHADOVANÝ KONIEC]],FALSE)","v":67},{"$f":"DAYS360(PodrobnostiOProjekte[[#This Row],[SKUTOČNÝ ZAČIATOK]],PodrobnostiOProjekte[[#This Row],[SKUTOČNÝ KONIEC]],FALSE)","v":63},{"$f":"INDEX(Parametre[],MATCH(PodrobnostiOProjekte[[#This Row],[TYP PROJEKTU]],Parametre[TYP PROJEKTU],0),MATCH(PodrobnostiOProjekte[[#Headers],[ACCOUNT MANAŽÉR]],Parametre[#Headers],0))*INDEX('PARAMETRE PROJEKTU'!$B$12:$H$12,1,MATCH(PodrobnostiOProjekte[[#Headers],[ACCOUNT MANAŽÉR]],Parametre[#Headers],0))*PodrobnostiOProjekte[[#This Row],[ODHADOVANÁ PRÁCA]]","v":{"v":18000,"d":"18,000 EUR"}},{"$f":"INDEX(Parametre[],MATCH(PodrobnostiOProjekte[[#This Row],[TYP PROJEKTU]],Parametre[TYP PROJEKTU],0),MATCH(PodrobnostiOProjekte[[#Headers],[PROJEKTOVÝ MANAŽÉR]],Parametre[#Headers],0))*INDEX('PARAMETRE PROJEKTU'!$B$12:$H$12,1,MATCH(PodrobnostiOProjekte[[#Headers],[PROJEKTOVÝ MANAŽÉR]],Parametre[#Headers],0))*PodrobnostiOProjekte[[#This Row],[ODHADOVANÁ PRÁCA]]","v":{"v":12000,"d":"12,000 EUR"}},{"$f":"INDEX(Parametre[],MATCH(PodrobnostiOProjekte[[#This Row],[TYP PROJEKTU]],Parametre[TYP PROJEKTU],0),MATCH(PodrobnostiOProjekte[[#Headers],[STRATEGICKÝ MANAŽÉR]],Parametre[#Headers],0))*INDEX('PARAMETRE PROJEKTU'!$B$12:$H$12,1,MATCH(PodrobnostiOProjekte[[#Headers],[STRATEGICKÝ MANAŽÉR]],Parametre[#Headers],0))*PodrobnostiOProjekte[[#This Row],[ODHADOVANÁ PRÁCA]]","v":{"v":0,"d":"0 EUR"}},{"$f":"INDEX(Parametre[],MATCH(PodrobnostiOProjekte[[#This Row],[TYP PROJEKTU]],Parametre[TYP PROJEKTU],0),MATCH(PodrobnostiOProjekte[[#Headers],[NÁVRHOVÝ ŠPECIALISTA]],Parametre[#Headers],0))*INDEX('PARAMETRE PROJEKTU'!$B$12:$H$12,1,MATCH(PodrobnostiOProjekte[[#Headers],[NÁVRHOVÝ ŠPECIALISTA]],Parametre[#Headers],0))*PodrobnostiOProjekte[[#This Row],[ODHADOVANÁ PRÁCA]]","v":{"v":25000,"d":"25,000 EUR"}},{"$f":"INDEX(Parametre[],MATCH(PodrobnostiOProjekte[[#This Row],[TYP PROJEKTU]],Parametre[TYP PROJEKTU],0),MATCH(PodrobnostiOProjekte[[#Headers],[PERSONÁL PODUJATIA]],Parametre[#Headers],0))*INDEX('PARAMETRE PROJEKTU'!$B$12:$H$12,1,MATCH(PodrobnostiOProjekte[[#Headers],[PERSONÁL PODUJATIA]],Parametre[#Headers],0))*PodrobnostiOProjekte[[#This Row],[ODHADOVANÁ PRÁCA]]","v":{"v":0,"d":"0 EUR"}},{"$f":"INDEX(Parametre[],MATCH(PodrobnostiOProjekte[[#This Row],[TYP PROJEKTU]],Parametre[TYP PROJEKTU],0),MATCH(PodrobnostiOProjekte[[#Headers],[ADMINISTRATÍVNY PERSONÁL]],Parametre[#Headers],0))*INDEX('PARAMETRE PROJEKTU'!$B$12:$H$12,1,MATCH(PodrobnostiOProjekte[[#Headers],[ADMINISTRATÍVNY PERSONÁL]],Parametre[#Headers],0))*PodrobnostiOProjekte[[#This Row],[ODHADOVANÁ PRÁCA]]","v":{"v":3000,"d":"3,000 EUR"}},{"$f":"INDEX(Parametre[],MATCH(PodrobnostiOProjekte[[#This Row],[TYP PROJEKTU]],Parametre[TYP PROJEKTU],0),MATCH(PodrobnostiOProjekte[[#Headers],[ACCOUNT MANAŽÉR]],Parametre[#Headers],0))*INDEX('PARAMETRE PROJEKTU'!$B$12:$H$12,1,MATCH(PodrobnostiOProjekte[[#Headers],[ACCOUNT MANAŽÉR]],Parametre[#Headers],0))*PodrobnostiOProjekte[[#This Row],[SKUTOČNÁ PRÁCA]]","v":{"v":18000,"d":"18,000 EUR"}},{"$f":"INDEX(Parametre[],MATCH(PodrobnostiOProjekte[[#This Row],[TYP PROJEKTU]],Parametre[TYP PROJEKTU],0),MATCH(PodrobnostiOProjekte[[#Headers],[PROJEKTOVÝ MANAŽÉR]],Parametre[#Headers],0))*INDEX('PARAMETRE PROJEKTU'!$B$12:$H$12,1,MATCH(PodrobnostiOProjekte[[#Headers],[PROJEKTOVÝ MANAŽÉR]],Parametre[#Headers],0))*PodrobnostiOProjekte[[#This Row],[SKUTOČNÁ PRÁCA]]","v":{"v":12000,"d":"12,000 EUR"}},{"$f":"INDEX(Parametre[],MATCH(PodrobnostiOProjekte[[#This Row],[TYP PROJEKTU]],Parametre[TYP PROJEKTU],0),MATCH(PodrobnostiOProjekte[[#Headers],[STRATEGICKÝ MANAŽÉR]],Parametre[#Headers],0))*INDEX('PARAMETRE PROJEKTU'!$B$12:$H$12,1,MATCH(PodrobnostiOProjekte[[#Headers],[STRATEGICKÝ MANAŽÉR]],Parametre[#Headers],0))*PodrobnostiOProjekte[[#This Row],[SKUTOČNÁ PRÁCA]]","v":{"v":0,"d":"0 EUR"}},{"$f":"INDEX(Parametre[],MATCH(PodrobnostiOProjekte[[#This Row],[TYP PROJEKTU]],Parametre[TYP PROJEKTU],0),MATCH(PodrobnostiOProjekte[[#Headers],[NÁVRHOVÝ ŠPECIALISTA]],Parametre[#Headers],0))*INDEX('PARAMETRE PROJEKTU'!$B$12:$H$12,1,MATCH(PodrobnostiOProjekte[[#Headers],[NÁVRHOVÝ ŠPECIALISTA]],Parametre[#Headers],0))*PodrobnostiOProjekte[[#This Row],[SKUTOČNÁ PRÁCA]]","v":{"v":25000,"d":"25,000 EUR"}},{"$f":"INDEX(Parametre[],MATCH(PodrobnostiOProjekte[[#This Row],[TYP PROJEKTU]],Parametre[TYP PROJEKTU],0),MATCH(PodrobnostiOProjekte[[#Headers],[PERSONÁL PODUJATIA]],Parametre[#Headers],0))*INDEX('PARAMETRE PROJEKTU'!$B$12:$H$12,1,MATCH(PodrobnostiOProjekte[[#Headers],[PERSONÁL PODUJATIA]],Parametre[#Headers],0))*PodrobnostiOProjekte[[#This Row],[SKUTOČNÁ PRÁCA]]","v":{"v":0,"d":"0 EUR"}},{"$f":"INDEX(Parametre[],MATCH(PodrobnostiOProjekte[[#This Row],[TYP PROJEKTU]],Parametre[TYP PROJEKTU],0),MATCH(PodrobnostiOProjekte[[#Headers],[ADMINISTRATÍVNY PERSONÁL]],Parametre[#Headers],0))*INDEX('PARAMETRE PROJEKTU'!$B$12:$H$12,1,MATCH(PodrobnostiOProjekte[[#Headers],[ADMINISTRATÍVNY PERSONÁL]],Parametre[#Headers],0))*PodrobnostiOProjekte[[#This Row],[SKUTOČNÁ PRÁCA]]","v":{"v":3000,"d":"3,000 EUR"}}]
[null,"Projekt 4","Logistika podujatia",{"$f":"DATE(YEAR(TODAY())+3,7,30)","v":"2022-07-30"},{"$f":"DATE(YEAR(TODAY())+3,9,28)","v":"2022-09-28"},{"$f":"DATE(YEAR(TODAY())+3,9,14)","v":"2022-09-14"},{"$f":"DATE(YEAR(TODAY())+3,11,13)","v":"2022-11-13"},150,145,{"$f":"DAYS360(PodrobnostiOProjekte[[#This Row],[ODHADOVANÝ ZAČIATOK]],PodrobnostiOProjekte[[#This Row],[ODHADOVANÝ KONIEC]],FALSE)","v":58},{"$f":"DAYS360(PodrobnostiOProjekte[[#This Row],[SKUTOČNÝ ZAČIATOK]],PodrobnostiOProjekte[[#This Row],[SKUTOČNÝ KONIEC]],FALSE)","v":59},{"$f":"INDEX(Parametre[],MATCH(PodrobnostiOProjekte[[#This Row],[TYP PROJEKTU]],Parametre[TYP PROJEKTU],0),MATCH(PodrobnostiOProjekte[[#Headers],[ACCOUNT MANAŽÉR]],Parametre[#Headers],0))*INDEX('PARAMETRE PROJEKTU'!$B$12:$H$12,1,MATCH(PodrobnostiOProjekte[[#Headers],[ACCOUNT MANAŽÉR]],Parametre[#Headers],0))*PodrobnostiOProjekte[[#This Row],[ODHADOVANÁ PRÁCA]]","v":{"v":5400,"d":"5,400 EUR"}},{"$f":"INDEX(Parametre[],MATCH(PodrobnostiOProjekte[[#This Row],[TYP PROJEKTU]],Parametre[TYP PROJEKTU],0),MATCH(PodrobnostiOProjekte[[#Headers],[PROJEKTOVÝ MANAŽÉR]],Parametre[#Headers],0))*INDEX('PARAMETRE PROJEKTU'!$B$12:$H$12,1,MATCH(PodrobnostiOProjekte[[#Headers],[PROJEKTOVÝ MANAŽÉR]],Parametre[#Headers],0))*PodrobnostiOProjekte[[#This Row],[ODHADOVANÁ PRÁCA]]","v":{"v":10800,"d":"10,800 EUR"}},{"$f":"INDEX(Parametre[],MATCH(PodrobnostiOProjekte[[#This Row],[TYP PROJEKTU]],Parametre[TYP PROJEKTU],0),MATCH(PodrobnostiOProjekte[[#Headers],[STRATEGICKÝ MANAŽÉR]],Parametre[#Headers],0))*INDEX('PARAMETRE PROJEKTU'!$B$12:$H$12,1,MATCH(PodrobnostiOProjekte[[#Headers],[STRATEGICKÝ MANAŽÉR]],Parametre[#Headers],0))*PodrobnostiOProjekte[[#This Row],[ODHADOVANÁ PRÁCA]]","v":{"v":0,"d":"0 EUR"}},{"$f":"INDEX(Parametre[],MATCH(PodrobnostiOProjekte[[#This Row],[TYP PROJEKTU]],Parametre[TYP PROJEKTU],0),MATCH(PodrobnostiOProjekte[[#Headers],[NÁVRHOVÝ ŠPECIALISTA]],Parametre[#Headers],0))*INDEX('PARAMETRE PROJEKTU'!$B$12:$H$12,1,MATCH(PodrobnostiOProjekte[[#Headers],[NÁVRHOVÝ ŠPECIALISTA]],Parametre[#Headers],0))*PodrobnostiOProjekte[[#This Row],[ODHADOVANÁ PRÁCA]]","v":{"v":0,"d":"0 EUR"}},{"$f":"INDEX(Parametre[],MATCH(PodrobnostiOProjekte[[#This Row],[TYP PROJEKTU]],Parametre[TYP PROJEKTU],0),MATCH(PodrobnostiOProjekte[[#Headers],[PERSONÁL PODUJATIA]],Parametre[#Headers],0))*INDEX('PARAMETRE PROJEKTU'!$B$12:$H$12,1,MATCH(PodrobnostiOProjekte[[#Headers],[PERSONÁL PODUJATIA]],Parametre[#Headers],0))*PodrobnostiOProjekte[[#This Row],[ODHADOVANÁ PRÁCA]]","v":{"v":1200,"d":"1,200 EUR"}},{"$f":"INDEX(Parametre[],MATCH(PodrobnostiOProjekte[[#This Row],[TYP PROJEKTU]],Parametre[TYP PROJEKTU],0),MATCH(PodrobnostiOProjekte[[#Headers],[ADMINISTRATÍVNY PERSONÁL]],Parametre[#Headers],0))*INDEX('PARAMETRE PROJEKTU'!$B$12:$H$12,1,MATCH(PodrobnostiOProjekte[[#Headers],[ADMINISTRATÍVNY PERSONÁL]],Parametre[#Headers],0))*PodrobnostiOProjekte[[#This Row],[ODHADOVANÁ PRÁCA]]","v":{"v":900,"d":"900 EUR"}},{"$f":"INDEX(Parametre[],MATCH(PodrobnostiOProjekte[[#This Row],[TYP PROJEKTU]],Parametre[TYP PROJEKTU],0),MATCH(PodrobnostiOProjekte[[#Headers],[ACCOUNT MANAŽÉR]],Parametre[#Headers],0))*INDEX('PARAMETRE PROJEKTU'!$B$12:$H$12,1,MATCH(PodrobnostiOProjekte[[#Headers],[ACCOUNT MANAŽÉR]],Parametre[#Headers],0))*PodrobnostiOProjekte[[#This Row],[SKUTOČNÁ PRÁCA]]","v":{"v":5220,"d":"5,220 EUR"}},{"$f":"INDEX(Parametre[],MATCH(PodrobnostiOProjekte[[#This Row],[TYP PROJEKTU]],Parametre[TYP PROJEKTU],0),MATCH(PodrobnostiOProjekte[[#Headers],[PROJEKTOVÝ MANAŽÉR]],Parametre[#Headers],0))*INDEX('PARAMETRE PROJEKTU'!$B$12:$H$12,1,MATCH(PodrobnostiOProjekte[[#Headers],[PROJEKTOVÝ MANAŽÉR]],Parametre[#Headers],0))*PodrobnostiOProjekte[[#This Row],[SKUTOČNÁ PRÁCA]]","v":{"v":10440,"d":"10,440 EUR"}},{"$f":"INDEX(Parametre[],MATCH(PodrobnostiOProjekte[[#This Row],[TYP PROJEKTU]],Parametre[TYP PROJEKTU],0),MATCH(PodrobnostiOProjekte[[#Headers],[STRATEGICKÝ MANAŽÉR]],Parametre[#Headers],0))*INDEX('PARAMETRE PROJEKTU'!$B$12:$H$12,1,MATCH(PodrobnostiOProjekte[[#Headers],[STRATEGICKÝ MANAŽÉR]],Parametre[#Headers],0))*PodrobnostiOProjekte[[#This Row],[SKUTOČNÁ PRÁCA]]","v":{"v":0,"d":"0 EUR"}},{"$f":"INDEX(Parametre[],MATCH(PodrobnostiOProjekte[[#This Row],[TYP PROJEKTU]],Parametre[TYP PROJEKTU],0),MATCH(PodrobnostiOProjekte[[#Headers],[NÁVRHOVÝ ŠPECIALISTA]],Parametre[#Headers],0))*INDEX('PARAMETRE PROJEKTU'!$B$12:$H$12,1,MATCH(PodrobnostiOProjekte[[#Headers],[NÁVRHOVÝ ŠPECIALISTA]],Parametre[#Headers],0))*PodrobnostiOProjekte[[#This Row],[SKUTOČNÁ PRÁCA]]","v":{"v":0,"d":"0 EUR"}},{"$f":"INDEX(Parametre[],MATCH(PodrobnostiOProjekte[[#This Row],[TYP PROJEKTU]],Parametre[TYP PROJEKTU],0),MATCH(PodrobnostiOProjekte[[#Headers],[PERSONÁL PODUJATIA]],Parametre[#Headers],0))*INDEX('PARAMETRE PROJEKTU'!$B$12:$H$12,1,MATCH(PodrobnostiOProjekte[[#Headers],[PERSONÁL PODUJATIA]],Parametre[#Headers],0))*PodrobnostiOProjekte[[#This Row],[SKUTOČNÁ PRÁCA]]","v":{"v":1160,"d":"1,160 EUR"}},{"$f":"INDEX(Parametre[],MATCH(PodrobnostiOProjekte[[#This Row],[TYP PROJEKTU]],Parametre[TYP PROJEKTU],0),MATCH(PodrobnostiOProjekte[[#Headers],[ADMINISTRATÍVNY PERSONÁL]],Parametre[#Headers],0))*INDEX('PARAMETRE PROJEKTU'!$B$12:$H$12,1,MATCH(PodrobnostiOProjekte[[#Headers],[ADMINISTRATÍVNY PERSONÁL]],Parametre[#Headers],0))*PodrobnostiOProjekte[[#This Row],[SKUTOČNÁ PRÁCA]]","v":{"v":870,"d":"870 EUR"}}]
[null,"Projekt 5","Personálne pokrytie podujatia",{"$f":"DATE(YEAR(TODAY())+4,8,11)","v":"2023-08-11"},{"$f":"DATE(YEAR(TODAY())+4,8,21)","v":"2023-08-21"},{"$f":"DATE(YEAR(TODAY())+4,9,14)","v":"2023-09-14"},{"$f":"DATE(YEAR(TODAY())+4,9,25)","v":"2023-09-25"},250,255,{"$f":"DAYS360(PodrobnostiOProjekte[[#This Row],[ODHADOVANÝ ZAČIATOK]],PodrobnostiOProjekte[[#This Row],[ODHADOVANÝ KONIEC]],FALSE)","v":10},{"$f":"DAYS360(PodrobnostiOProjekte[[#This Row],[SKUTOČNÝ ZAČIATOK]],PodrobnostiOProjekte[[#This Row],[SKUTOČNÝ KONIEC]],FALSE)","v":11},{"$f":"INDEX(Parametre[],MATCH(PodrobnostiOProjekte[[#This Row],[TYP PROJEKTU]],Parametre[TYP PROJEKTU],0),MATCH(PodrobnostiOProjekte[[#Headers],[ACCOUNT MANAŽÉR]],Parametre[#Headers],0))*INDEX('PARAMETRE PROJEKTU'!$B$12:$H$12,1,MATCH(PodrobnostiOProjekte[[#Headers],[ACCOUNT MANAŽÉR]],Parametre[#Headers],0))*PodrobnostiOProjekte[[#This Row],[ODHADOVANÁ PRÁCA]]","v":{"v":9000,"d":"9,000 EUR"}},{"$f":"INDEX(Parametre[],MATCH(PodrobnostiOProjekte[[#This Row],[TYP PROJEKTU]],Parametre[TYP PROJEKTU],0),MATCH(PodrobnostiOProjekte[[#Headers],[PROJEKTOVÝ MANAŽÉR]],Parametre[#Headers],0))*INDEX('PARAMETRE PROJEKTU'!$B$12:$H$12,1,MATCH(PodrobnostiOProjekte[[#Headers],[PROJEKTOVÝ MANAŽÉR]],Parametre[#Headers],0))*PodrobnostiOProjekte[[#This Row],[ODHADOVANÁ PRÁCA]]","v":{"v":3000,"d":"3,000 EUR"}},{"$f":"INDEX(Parametre[],MATCH(PodrobnostiOProjekte[[#This Row],[TYP PROJEKTU]],Parametre[TYP PROJEKTU],0),MATCH(PodrobnostiOProjekte[[#Headers],[STRATEGICKÝ MANAŽÉR]],Parametre[#Headers],0))*INDEX('PARAMETRE PROJEKTU'!$B$12:$H$12,1,MATCH(PodrobnostiOProjekte[[#Headers],[STRATEGICKÝ MANAŽÉR]],Parametre[#Headers],0))*PodrobnostiOProjekte[[#This Row],[ODHADOVANÁ PRÁCA]]","v":{"v":0,"d":"0 EUR"}},{"$f":"INDEX(Parametre[],MATCH(PodrobnostiOProjekte[[#This Row],[TYP PROJEKTU]],Parametre[TYP PROJEKTU],0),MATCH(PodrobnostiOProjekte[[#Headers],[NÁVRHOVÝ ŠPECIALISTA]],Parametre[#Headers],0))*INDEX('PARAMETRE PROJEKTU'!$B$12:$H$12,1,MATCH(PodrobnostiOProjekte[[#Headers],[NÁVRHOVÝ ŠPECIALISTA]],Parametre[#Headers],0))*PodrobnostiOProjekte[[#This Row],[ODHADOVANÁ PRÁCA]]","v":{"v":0,"d":"0 EUR"}},{"$f":"INDEX(Parametre[],MATCH(PodrobnostiOProjekte[[#This Row],[TYP PROJEKTU]],Parametre[TYP PROJEKTU],0),MATCH(PodrobnostiOProjekte[[#Headers],[PERSONÁL PODUJATIA]],Parametre[#Headers],0))*INDEX('PARAMETRE PROJEKTU'!$B$12:$H$12,1,MATCH(PodrobnostiOProjekte[[#Headers],[PERSONÁL PODUJATIA]],Parametre[#Headers],0))*PodrobnostiOProjekte[[#This Row],[ODHADOVANÁ PRÁCA]]","v":{"v":12000,"d":"12,000 EUR"}},{"$f":"INDEX(Parametre[],MATCH(PodrobnostiOProjekte[[#This Row],[TYP PROJEKTU]],Parametre[TYP PROJEKTU],0),MATCH(PodrobnostiOProjekte[[#Headers],[ADMINISTRATÍVNY PERSONÁL]],Parametre[#Headers],0))*INDEX('PARAMETRE PROJEKTU'!$B$12:$H$12,1,MATCH(PodrobnostiOProjekte[[#Headers],[ADMINISTRATÍVNY PERSONÁL]],Parametre[#Headers],0))*PodrobnostiOProjekte[[#This Row],[ODHADOVANÁ PRÁCA]]","v":{"v":1500,"d":"1,500 EUR"}},{"$f":"INDEX(Parametre[],MATCH(PodrobnostiOProjekte[[#This Row],[TYP PROJEKTU]],Parametre[TYP PROJEKTU],0),MATCH(PodrobnostiOProjekte[[#Headers],[ACCOUNT MANAŽÉR]],Parametre[#Headers],0))*INDEX('PARAMETRE PROJEKTU'!$B$12:$H$12,1,MATCH(PodrobnostiOProjekte[[#Headers],[ACCOUNT MANAŽÉR]],Parametre[#Headers],0))*PodrobnostiOProjekte[[#This Row],[SKUTOČNÁ PRÁCA]]","v":{"v":9180,"d":"9,180 EUR"}},{"$f":"INDEX(Parametre[],MATCH(PodrobnostiOProjekte[[#This Row],[TYP PROJEKTU]],Parametre[TYP PROJEKTU],0),MATCH(PodrobnostiOProjekte[[#Headers],[PROJEKTOVÝ MANAŽÉR]],Parametre[#Headers],0))*INDEX('PARAMETRE PROJEKTU'!$B$12:$H$12,1,MATCH(PodrobnostiOProjekte[[#Headers],[PROJEKTOVÝ MANAŽÉR]],Parametre[#Headers],0))*PodrobnostiOProjekte[[#This Row],[SKUTOČNÁ PRÁCA]]","v":{"v":3060,"d":"3,060 EUR"}},{"$f":"INDEX(Parametre[],MATCH(PodrobnostiOProjekte[[#This Row],[TYP PROJEKTU]],Parametre[TYP PROJEKTU],0),MATCH(PodrobnostiOProjekte[[#Headers],[STRATEGICKÝ MANAŽÉR]],Parametre[#Headers],0))*INDEX('PARAMETRE PROJEKTU'!$B$12:$H$12,1,MATCH(PodrobnostiOProjekte[[#Headers],[STRATEGICKÝ MANAŽÉR]],Parametre[#Headers],0))*PodrobnostiOProjekte[[#This Row],[SKUTOČNÁ PRÁCA]]","v":{"v":0,"d":"0 EUR"}},{"$f":"INDEX(Parametre[],MATCH(PodrobnostiOProjekte[[#This Row],[TYP PROJEKTU]],Parametre[TYP PROJEKTU],0),MATCH(PodrobnostiOProjekte[[#Headers],[NÁVRHOVÝ ŠPECIALISTA]],Parametre[#Headers],0))*INDEX('PARAMETRE PROJEKTU'!$B$12:$H$12,1,MATCH(PodrobnostiOProjekte[[#Headers],[NÁVRHOVÝ ŠPECIALISTA]],Parametre[#Headers],0))*PodrobnostiOProjekte[[#This Row],[SKUTOČNÁ PRÁCA]]","v":{"v":0,"d":"0 EUR"}},{"$f":"INDEX(Parametre[],MATCH(PodrobnostiOProjekte[[#This Row],[TYP PROJEKTU]],Parametre[TYP PROJEKTU],0),MATCH(PodrobnostiOProjekte[[#Headers],[PERSONÁL PODUJATIA]],Parametre[#Headers],0))*INDEX('PARAMETRE PROJEKTU'!$B$12:$H$12,1,MATCH(PodrobnostiOProjekte[[#Headers],[PERSONÁL PODUJATIA]],Parametre[#Headers],0))*PodrobnostiOProjekte[[#This Row],[SKUTOČNÁ PRÁCA]]","v":{"v":12240,"d":"12,240 EUR"}},{"$f":"INDEX(Parametre[],MATCH(PodrobnostiOProjekte[[#This Row],[TYP PROJEKTU]],Parametre[TYP PROJEKTU],0),MATCH(PodrobnostiOProjekte[[#Headers],[ADMINISTRATÍVNY PERSONÁL]],Parametre[#Headers],0))*INDEX('PARAMETRE PROJEKTU'!$B$12:$H$12,1,MATCH(PodrobnostiOProjekte[[#Headers],[ADMINISTRATÍVNY PERSONÁL]],Parametre[#Headers],0))*PodrobnostiOProjekte[[#This Row],[SKUTOČNÁ PRÁCA]]","v":{"v":1530,"d":"1,530 EUR"}}]
[null,"CELKOVÁ HODNOTA",{"$nulls":5},{"$f":"SUBTOTAL(109,PodrobnostiOProjekte[ODHADOVANÁ PRÁCA])","v":1500},{"$f":"SUBTOTAL(109,PodrobnostiOProjekte[SKUTOČNÁ PRÁCA])","v":1510},{"$f":"SUBTOTAL(109,PodrobnostiOProjekte[ODHADOVANÉ TRVANIE])","v":225},{"$f":"SUBTOTAL(109,PodrobnostiOProjekte[SKUTOČNÉ TRVANIE])","v":597}]

{"sheet":"SÚČTY PROJEKTU","index":3,"n_rows":10,"n_cols":14,"rows_kept":10}
["Tento hárok poskytuje súčty projektu. Názov spoločnosti v bunke napravo sa aktualizuje automaticky. V bunkách v tomto stĺpci nájdete užitočné pokyny. Začnite stlačením šípky nadol.",{"$f":"'PARAMETRE PROJEKTU'!B1","v":"Názov spoločnosti"}]
["V bunke napravo sa nachádza nadpis tohto hárka.","Sledovanie projektu riadenia podujatia"]
["V bunke napravo sa nachádza správa o dôvernosti.",{"$f":"'PARAMETRE PROJEKTU'!B3","v":"Názov spoločnosti je dôverný"}]
["Kontingenčná tabuľka začínajúca v bunke napravo sa aktualizuje automaticky.\nINFORMÁCIE\nAk chcete obnoviť kontingenčnú tabuľku napravo, vyberte ju (ľubovoľnú bunku v kontingenčnej tabuľke), na karte NÁSTROJE PRE KONTINGENČNÉ TABUĽKY | ANALYZOVAŤ na páse s nástrojmi vyberte položku Obnoviť, prípadne prejdite na ľubovoľnú bunku v kontingenčnej tabuľke, stlačte kombináciu klávesov SHIFT + F10 a potom vyberte položku Obnoviť.","NÁZOV PROJEKTU","ACCOUNT MANAŽÉR – ODHADOVANÉ","PROJEKTOVÝ MANAŽÉR – ODHADOVANÉ","STRATEGICKÝ MANAŽÉR – ODHADOVANÉ","NÁVRHOVÝ ŠPECIALISTA – ODHADOVANÉ","PERSONÁL PODUJATIA – ODHADOVANÉ","ADMINISTRATÍVNY PERSONÁL – ODHADOVANÉ","ACCOUNT MANAŽÉR – SKUTOČNÉ","PROJEKTOVÝ MANAŽÉR – SKUTOČNÉ","STRATEGICKÝ MANAŽÉR – SKUTOČNÉ","NÁVRHOVÝ ŠPECIALISTA – SKUTOČNÉ","PERSONÁL PODUJATIA – SKUTOČNÉ","ADMINISTRATÍVNY PERSONÁL – SKUTOČNÉ"]
[null,"Projekt 1",{"v":7200,"d":"7,200.00 EUR"},{"v":2400,"d":"2,400.00 EUR"},{"v":18000,"d":"18,000.00 EUR"},{"v":0,"d":"0.00 EUR"},{"v":0,"d":"0.00 EUR"},{"v":1200,"d":"1,200.00 EUR"},{"v":7920,"d":"7,920.00 EUR"},{"v":2640,"d":"2,640.00 EUR"},{"v":19800,"d":"19,800.00 EUR"},{"v":0,"d":"0.00 EUR"},{"v":0,"d":"0.00 EUR"},{"v":1320,"d":"1,320.00 EUR"}]
[null,"Projekt 2",{"v":14400,"d":"14,400.00 EUR"},{"v":24000,"d":"24,000.00 EUR"},{"v":6000,"d":"6,000.00 EUR"},{"v":4000,"d":"4,000.00 EUR"},{"v":0,"d":"0.00 EUR"},{"v":2400,"d":"2,400.00 EUR"},{"v":14040,"d":"14,040.00 EUR"},{"v":23400,"d":"23,400.00 EUR"},{"v":5850,"d":"5,850.00 EUR"},{"v":3900,"d":"3,900.00 EUR"},{"v":0,"d":"0.00 EUR"},{"v":2340,"d":"2,340.00 EUR"}]
[null,"Projekt 3",{"v":18000,"d":"18,000.00 EUR"},{"v":12000,"d":"12,000.00 EUR"},{"v":0,"d":"0.00 EUR"},{"v":25000,"d":"25,000.00 EUR"},{"v":0,"d":"0.00 EUR"},{"v":3000,"d":"3,000.00 EUR"},{"v":18000,"d":"18,000.00 EUR"},{"v":12000,"d":"12,000.00 EUR"},{"v":0,"d":"0.00 EUR"},{"v":25000,"d":"25,000.00 EUR"},{"v":0,"d":"0.00 EUR"},{"v":3000,"d":"3,000.00 EUR"}]
[null,"Projekt 4",{"v":5400,"d":"5,400.00 EUR"},{"v":10800,"d":"10,800.00 EUR"},{"v":0,"d":"0.00 EUR"},{"v":0,"d":"0.00 EUR"},{"v":1200,"d":"1,200.00 EUR"},{"v":900,"d":"900.00 EUR"},{"v":5220,"d":"5,220.00 EUR"},{"v":10440,"d":"10,440.00 EUR"},{"v":0,"d":"0.00 EUR"},{"v":0,"d":"0.00 EUR"},{"v":1160,"d":"1,160.00 EUR"},{"v":870,"d":"870.00 EUR"}]
[null,"Projekt 5",{"v":9000,"d":"9,000.00 EUR"},{"v":3000,"d":"3,000.00 EUR"},{"v":0,"d":"0.00 EUR"},{"v":0,"d":"0.00 EUR"},{"v":12000,"d":"12,000.00 EUR"},{"v":1500,"d":"1,500.00 EUR"},{"v":9180,"d":"9,180.00 EUR"},{"v":3060,"d":"3,060.00 EUR"},{"v":0,"d":"0.00 EUR"},{"v":0,"d":"0.00 EUR"},{"v":12240,"d":"12,240.00 EUR"},{"v":1530,"d":"1,530.00 EUR"}]
[null,"Celkový súčet",{"v":54000,"d":"54,000.00 EUR"},{"v":52200,"d":"52,200.00 EUR"},{"v":24000,"d":"24,000.00 EUR"},{"v":29000,"d":"29,000.00 EUR"},{"v":13200,"d":"13,200.00 EUR"},{"v":9000,"d":"9,000.00 EUR"},{"v":54360,"d":"54,360.00 EUR"},{"v":51540,"d":"51,540.00 EUR"},{"v":25650,"d":"25,650.00 EUR"},{"v":28900,"d":"28,900.00 EUR"},{"v":13400,"d":"13,400.00 EUR"},{"v":9060,"d":"9,060.00 EUR"}]